fUST/lending_fUST_20250717
["ID","MTS","AMOUNT","RATE_DAILY","PERIOD"]
[372650090,1752733847134,-1737.46,0.00018583,2]
[372650091,1752733847143,-2090.97,0.00018583,2]
[372650092,1752733847153,-899.49,0.00018583,2]
[372650093,1752733847162,-2579.09,0.00018583,2]
[372650094,1752733847171,-642.73,0.00018583,2]
[372650095,1752733847182,-460.0,0.00018584,2]
[372650096,1752733847192,-460.0,0.00018584,2]
[372650097,1752733847201,-460.0,0.00018584,2]
[372650098,1752733847210,-460.0,0.00018584,2]
[372650099,1752733847219,-460.0,0.00018584,2]
[372650100,1752733847229,-460.0,0.00018584,2]
[372650101,1752733847238,-582.75,0.00018584,2]
[372650102,1752733847248,-460.0,0.00018584,2]
[372650103,1752733847257,-460.0,0.00018584,2]
[372650104,1752733847267,-460.0,0.00018584,2]
[372650105,1752733847277,-460.0,0.00018584,2]
[372650106,1752733847286,-460.0,0.00018584,2]
[372650107,1752733847295,-460.0,0.00018584,2]
[372650108,1752733847305,-460.0,0.00018584,2]
[372650109,1752733847316,-460.0,0.00018584,2]
[372650110,1752733847326,-460.0,0.00018584,2]
[372650111,1752733847335,-460.0,0.00018584,2]
[372650112,1752733847345,-460.0,0.00018584,2]
[372650113,1752733847355,-460.0,0.00018584,2]
[372650114,1752733847364,-460.0,0.00018584,2]
[372650115,1752733847374,-460.0,0.00018584,2]
[372650116,1752733847384,-460.0,0.00018584,2]
[372650117,1752733847394,-460.0,0.00018584,2]
[372650118,1752733847404,-674.33,0.00018584,2]
[372650119,1752733847413,-466.89837697,0.00018584,2]
[372650120,1752733847423,-460.0,0.00018584,2]
[372650121,1752733847433,-460.0,0.00018584,2]
[372650122,1752733847443,-460.0,0.00018584,2]
[372650123,1752733847452,-460.0,0.00018584,2]
[372650124,1752733847462,-460.0,0.00018584,2]
[372650125,1752733847472,-460.0,0.00018584,2]
[372650126,1752733847481,-460.0,0.00018584,2]
[372650127,1752733847491,-460.0,0.00018584,2]
[372650128,1752733847502,-460.0,0.00018584,2]
[372650129,1752733847512,-335.94590468,0.00018584,2]
[372650130,1752733847521,-460.0,0.00018584,2]
[372650131,1752733847531,-460.0,0.00018584,2]
[372650132,1752733847541,-460.0,0.00018584,2]
[372650133,1752733847551,-460.0,0.00018584,2]
[372650134,1752733847563,-460.0,0.00018584,2]
[372650135,1752733847573,-460.0,0.00018584,2]
[372650136,1752733847583,-460.0,0.00018584,2]
[372650137,1752733847593,-460.0,0.00018584,2]
[372650138,1752733847603,-460.0,0.00018584,2]
[372650139,1752733847612,-460.0,0.00018584,2]
[372650140,1752733847622,-460.0,0.00018584,2]
[372650141,1752733847632,-151.0,0.00018584,2]
[372650142,1752733847642,-151.0,0.00018584,2]
[372650143,1752733847651,-460.0,0.00018584,2]
[372650144,1752733847661,-460.0,0.00018584,2]
[372650145,1752733847671,-460.0,0.00018584,2]
[372650146,1752733847680,-460.0,0.00018584,2]
[372650147,1752733847690,-160.0,0.00018586,2]
[372650148,1752733847699,-160.0,0.00018586,2]
[372650149,1752733847709,-153.0,0.000186,2]
[372650150,1752733847719,-576.958633,0.000186,2]
[372650151,1752733847729,-153.0,0.000186,2]
[372650152,1752733847742,-178.0508327,0.000186,2]
[372650153,1752733847752,-576.958633,0.000186,2]
[372650154,1752733847761,-151.0,0.000186,2]
[372650155,1752733847770,-151.0,0.000186,2]
[372650156,1752733847780,-178.0508326,0.000186,2]
[372650157,1752733847790,-151.0,0.000186,2]
[372650158,1752733847800,-151.0,0.000186,2]
[372650159,1752733847811,-155.340909,0.000186,2]
[372650160,1752733847820,-151.0,0.000186,2]
[372650161,1752733847835,-151.0,0.000186,2]
[372650162,1752733847845,-230.85589339,0.0001863,2]
[372650163,1752733847854,-160.0,0.0001863,2]
[372650164,1752733847863,-525.67742785,0.0001863,2]
[372650165,1752733847874,-12607.95677342,0.0001863,2]
[372650166,1752733847883,-214.44804168,0.0001863,2]
[372650167,1752733847892,-476.16111942,0.0001863,2]
[372650168,1752733847903,-839.15451687,0.0001863,2]
[372650169,1752733847912,-160.0,0.0001863,2]
[372650170,1752733847922,-215.59244943,0.0001863,2]
[372650171,1752733847931,-340.0,0.00018632,2]
[372650172,1752733847940,-6103.66126702,0.00018657,2]
[372650173,1752733847950,-500.0,0.0001866,2]
[372650174,1752733847960,-460.0,0.00018679,2]
[372650175,1752733848042,-460.0,0.00018679,2]
[372650176,1752733848052,-460.0,0.00018679,2]
[372650177,1752733848067,-460.0,0.00018679,2]
[372650178,1752733848076,-4140.04,0.00018679,2]
[372650179,1752733848086,-932.79,0.00018679,2]
[372650180,1752733848096,-540.39,0.00018679,2]
[372650181,1752733848106,-460.0,0.00018679,2]
[372650182,1752733848115,-2892.45,0.00018679,2]
[372650183,1752733848125,-460.0,0.00018679,2]
[372650184,1752733848135,-460.0,0.00018679,2]
[372650185,1752733848144,-2151.51,0.00018679,2]
[372650186,1752733848154,-727.28,0.00018679,2]
[372650187,1752733848163,-460.0,0.0001868,2]
[372650188,1752733848173,-460.0,0.0001868,2]
[372650189,1752733848183,-505.74341026,0.0001868,2]
[372650190,1752733848193,-469.6189657,0.0001868,2]
[372650191,1752733848203,-460.0,0.0001868,2]
[372650192,1752733848212,-460.0,0.0001868,2]
[372650193,1752733848222,-460.0,0.0001868,2]
[372650194,1752733848231,-460.0,0.0001868,2]
[372650195,1752733848241,-443.99665788,0.00018681,2]
[372650196,1752733848251,-151.0,0.00018681,2]
[372650197,1752733848260,-151.0,0.00018681,2]
[372650198,1752733848269,-469.86983277,0.00018681,2]
[372650199,1752733848279,-427.06258271,0.00018681,2]
[372650200,1752733848289,-188.86749796,0.00018681,2]
[372650201,1752733848298,-460.0,0.00018681,2]
[372650202,1752733848309,-460.0,0.00018681,2]
[372650203,1752733848319,-460.0,0.00018681,2]
[372650204,1752733848328,-460.0,0.00018681,2]
[372650205,1752733848338,-460.0,0.00018681,2]
[372650206,1752733848348,-460.0,0.00018681,2]
[372650207,1752733848358,-460.0,0.00018681,2]
[372650208,1752733848368,-460.0,0.00018681,2]
[372650209,1752733848378,-460.0,0.00018681,2]
[372650210,1752733848388,-460.0,0.00018681,2]
[372650211,1752733848398,-206.9208883,0.00018681,2]
[372650212,1752733848408,-460.0,0.00018681,2]
[372650213,1752733848418,-631.04,0.00018681,2]
[372650214,1752733848428,-460.0,0.00018681,2]
[372650215,1752733848438,-460.0,0.00018681,2]
[372650216,1752733848447,-460.0,0.00018681,2]
[372650217,1752733848457,-460.0,0.00018681,2]
[372650218,1752733848467,-1599.14,0.00018681,2]
[372650219,1752733848476,-460.0,0.00018681,2]
[372650220,1752733848486,-250.78946978,0.00018681,2]
[372650221,1752733848496,-509.94723468,0.00018681,2]
[372650222,1752733848505,-219.032396,0.00018681,2]
[372650223,1752733848516,-460.0,0.00018681,2]
[372650224,1752733848526,-460.0,0.00018681,2]
[372650225,1752733848536,-219.032396,0.00018681,2]
[372650226,1752733848547,-152.4612,0.00018681,2]
[372650227,1752733848556,-613.34,0.00018681,2]
[372650228,1752733848568,-619.55,0.00018681,2]
[372650229,1752733848578,-1158.0,0.00018681,2]
[372650230,1752733848588,-460.0,0.00018681,2]
[372650231,1752733848598,-460.0,0.00018681,2]
[372650232,1752733848608,-460.0,0.00018681,2]
[372650233,1752733848618,-693.25,0.00018681,2]
[372650234,1752733848628,-460.0,0.00018681,2]
[372650235,1752733848638,-460.0,0.00018681,2]
[372650236,1752733848648,-460.0,0.00018681,2]
[372650237,1752733848658,-1194.0,0.00018683,2]
[372650238,1752733848667,-151.0,0.00018683,2]
[372650239,1752733848678,-215.20393213,0.00018683,2]
[372650240,1752733848687,-151.0,0.00018683,2]
[372650241,1752733848697,-276.01602829,0.00018683,2]
[372650242,1752733848708,-1100.0,0.00018683,2]
[372650243,1752733848718,-151.0,0.00018683,2]
[372650244,1752733848728,-500.0,0.00018683,2]
[372650245,1752733848737,-460.0,0.00018683,2]
[372650246,1752733848750,-460.0,0.00018683,2]
[372650247,1752733848759,-460.0,0.00018683,2]
[372650248,1752733848769,-460.0,0.00018683,2]
[372650249,1752733848778,-460.0,0.00018683,2]
[372650250,1752733848789,-460.0,0.00018683,2]
[372650251,1752733848799,-316.97761444,0.00018683,2]
[372650252,1752733848810,-460.0,0.00018683,2]
[372650253,1752733848822,-298.22,0.00018683,2]
[372650254,1752733848832,-313.66168672,0.00018683,2]
[372650255,1752733848842,-460.0,0.00018683,2]
[372650256,1752733848851,-460.0,0.00018683,2]
[372650257,1752733848862,-460.0,0.00018683,2]
[372650258,1752733848871,-460.0,0.00018683,2]
[372650259,1752733848881,-460.0,0.00018683,2]
[372650260,1752733848890,-460.0,0.00018683,2]
[372650261,1752733848900,-460.0,0.00018683,2]
[372650262,1752733848910,-460.0,0.00018683,2]
[372650263,1752733848920,-460.0,0.00018683,2]
[372650264,1752733848930,-460.0,0.00018683,2]
[372650265,1752733848941,-487.37676396,0.00018683,2]
[372650266,1752733848950,-460.0,0.00018683,2]
[372650267,1752733848961,-847.53,0.00018683,2]
[372650268,1752733848971,-480.89545933,0.00018683,2]
[372650269,1752733848980,-460.0,0.00018683,2]
[372650270,1752733848990,-692.39,0.00018683,2]
[372650271,1752733849000,-552.96923944,0.00018683,2]
[372650272,1752733849010,-460.0,0.00018683,2]
[372650273,1752733849021,-460.0,0.00018683,2]
[372650274,1752733849030,-460.0,0.00018683,2]
[372650275,1752733849040,-460.0,0.00018683,2]
[372650276,1752733849049,-546.11,0.00018683,2]
[372650277,1752733849061,-460.0,0.00018683,2]
[372650278,1752733849071,-460.0,0.00018683,2]
[372650279,1752733849080,-3583.74,0.00018683,2]
[372650280,1752733849090,-460.0,0.00018683,2]
[372650281,1752733849100,-1073.34,0.00018683,2]
[372650282,1752733849110,-460.0,0.00018684,2]
[372650283,1752733849119,-151.326957,0.00018684,2]
[372650284,1752733849129,-151.326957,0.00018684,2]
[372650285,1752733849138,-460.0,0.00018684,2]
[372650286,1752733849147,-460.0,0.00018684,2]
[372650287,1752733849157,-460.0,0.00018684,2]
[372650288,1752733849166,-460.0,0.00018684,2]
[372650289,1752733849176,-460.0,0.00018685,2]
[372650290,1752733849186,-426.30065769,0.00018685,2]
[372650291,1752733849196,-460.0,0.00018685,2]
[372650292,1752733849205,-460.0,0.00018685,2]
[372650293,1752733849215,-491.14493759,0.00018685,2]
[372650294,1752733849224,-460.0,0.00018685,2]
[372650295,1752733849233,-460.0,0.00018685,2]
[372650296,1752733849242,-460.0,0.00018685,2]
[372650297,1752733849252,-151.0,0.00018686,2]
[372650298,1752733849261,-151.0,0.00018686,2]
[372650299,1752733849271,-151.0,0.00018686,2]
[372650300,1752733849354,-330.792834,0.00018687,2]
[372650301,1752733849364,-330.792834,0.00018687,2]
[372650302,1752733849374,-263.172676,0.00018687,2]
[372650303,1752733849384,-263.172676,0.00018687,2]
[372650304,1752733849393,-151.0,0.00018688,2]
[372650305,1752733849403,-166.465663,0.00018688,2]
[372650306,1752733849413,-166.465663,0.00018688,2]
[372650307,1752733849422,-151.0,0.00018688,2]
[372650308,1752733849432,-151.0,0.00018688,2]
[372650309,1752733849442,-151.0,0.00018688,2]
[372650310,1752733849451,-151.0,0.00018689,2]
[372650311,1752733849461,-151.0,0.00018689,2]
[372650312,1752733849471,-576.958633,0.000187,2]
[372650313,1752733849481,-153.0,0.000187,2]
[372650314,1752733849491,-358.8362288,0.000187,2]
[372650315,1752733849501,-178.0508327,0.000187,2]
[372650316,1752733849510,-160.5111914,0.000187,2]
[372650317,1752733849520,-159.7589236,0.000187,2]
[372650318,1752733849529,-178.0508326,0.000187,2]
[372650319,1752733849539,-583.3478708,0.000187,2]
[372650320,1752733849549,-576.958633,0.000187,2]
[372650321,1752733849559,-424.07649,0.00018703,2]
[372650322,1752733849569,-424.07649,0.00018703,2]
[372650323,1752733849579,-151.0,0.00018703,2]
[372650324,1752733849589,-151.0,0.00018703,2]
[372650325,1752733849598,-500.0,0.00018721,2]
[372650326,1752733849608,-982.08826495,0.00018721,2]
[372650327,1752733849618,-378.17178462,0.00018721,2]
[372650328,1752733849627,-1000.0,0.00018721,2]
[372650329,1752733849637,-505.45312381,0.00018721,2]
[372650330,1752733849646,-1000.0,0.00018721,2]
[372650331,1752733849656,-151.0,0.00018728,2]
[372650332,1752733849666,-151.0,0.00018728,2]
[372650333,1752733849675,-151.0,0.00018728,2]
[372650334,1752733849685,-900.0,0.00018772,2]
[372650335,1752733849695,-151.0,0.00018776,2]
[372650336,1752733849704,-296.12937,0.00018776,2]
[372650337,1752733849714,-296.12937,0.00018776,2]
[372650338,1752733849723,-576.958633,0.000188,2]
[372650339,1752733849733,-159.7589233,0.000188,2]
[372650340,1752733849746,-178.0508326,0.000188,2]
[372650341,1752733849756,-488.759505,0.00018808,2]
[372650342,1752733849765,-488.759505,0.00018808,2]
[372650343,1752733849774,-351.592733,0.00018808,2]
[372650344,1752733849785,-351.592733,0.00018808,2]
[372650345,1752733849795,-298.687031,0.00018808,2]
[372650346,1752733849804,-298.687031,0.00018808,2]
[372650347,1752733849814,-3910.0,0.00018808,2]
[372650348,1752733849824,-460.0,0.00018854,2]
[372650349,1752733849833,-460.0,0.00018854,2]
[372650350,1752733849843,-460.0,0.00018854,2]
[372650351,1752733849853,-460.0,0.00018854,2]
[372650352,1752733849863,-460.0,0.00018854,2]
[372650353,1752733849873,-460.0,0.00018854,2]
[372650354,1752733849882,-460.0,0.00018854,2]
[372650355,1752733849892,-460.0,0.00018854,2]
[372650356,1752733849902,-460.0,0.00018854,2]
[372650357,1752733849912,-486.72,0.00018854,2]
[372650358,1752733849921,-292.78179,0.00018854,2]
[372650359,1752733849932,-292.78179,0.00018854,2]
[372650360,1752733849942,-460.0,0.00018854,2]
[372650361,1752733849952,-460.0,0.00018854,2]
[372650362,1752733849962,-460.0,0.00018854,2]
[372650363,1752733849971,-530.92,0.00018854,2]
[372650364,1752733849981,-587.58,0.00018854,2]
[372650365,1752733849990,-460.0,0.00018854,2]
[372650366,1752733850000,-460.0,0.00018854,2]
[372650367,1752733850010,-598.69,0.00018854,2]
[372650368,1752733850019,-460.0,0.00018854,2]
[372650369,1752733850029,-460.0,0.00018854,2]
[372650370,1752733850039,-461.0,0.00018854,2]
[372650371,1752733850048,-460.0,0.00018854,2]
[372650372,1752733850058,-460.0,0.00018854,2]
[372650373,1752733850068,-544.67087841,0.00018854,2]
[372650374,1752733850078,-672.11,0.00018854,2]
[372650375,1752733850088,-460.0,0.00018854,2]
[372650376,1752733850098,-460.0,0.00018854,2]
[372650377,1752733850108,-460.0,0.00018854,2]
[372650378,1752733850118,-460.0,0.00018854,2]
[372650379,1752733850128,-460.0,0.00018854,2]
[372650380,1752733850137,-5674.72,0.00018854,2]
[372650381,1752733850147,-460.0,0.00018854,2]
[372650382,1752733850156,-460.0,0.00018854,2]
[372650383,1752733850166,-460.0,0.00018854,2]
[372650384,1752733850175,-460.0,0.00018854,2]
[372650385,1752733850185,-151.0,0.00018854,2]
[372650386,1752733850195,-460.0,0.00018854,2]
[372650387,1752733850204,-151.0,0.00018854,2]
[372650388,1752733850213,-460.0,0.00018854,2]
[372650389,1752733850222,-460.0,0.00018854,2]
[372650390,1752733850231,-2305.95,0.00018854,2]
[372650391,1752733850241,-460.0,0.00018854,2]
[372650392,1752733850250,-4193.99,0.00018854,2]
[372650393,1752733850259,-710.08,0.00018854,2]
[372650394,1752733850269,-460.0,0.00018854,2]
[372650395,1752733850278,-460.0,0.00018854,2]
[372650396,1752733850287,-460.0,0.00018854,2]
[372650397,1752733850296,-460.0,0.00018854,2]
[372650398,1752733850305,-460.0,0.00018854,2]
[372650399,1752733850318,-1286.69,0.00018854,2]
[372650400,1752733850327,-460.0,0.00018854,2]
[372650401,1752733850336,-2289.29,0.00018854,2]
[372650402,1752733850345,-460.0,0.00018854,2]
[372650403,1752733850355,-460.0,0.00018856,2]
[372650404,1752733850364,-219.032396,0.00018856,2]
[372650405,1752733850374,-219.032396,0.00018856,2]
[372650406,1752733850383,-460.0,0.00018857,2]
[372650407,1752733850392,-460.0,0.00018857,2]
[372650408,1752733850401,-460.0,0.00018857,2]
[372650409,1752733850410,-460.0,0.00018857,2]
[372650410,1752733850419,-1737.46,0.00018857,2]
[372650411,1752733850430,-2090.97,0.00018857,2]
[372650412,1752733850439,-899.49,0.00018857,2]
[372650413,1752733850448,-2579.09,0.00018857,2]
[372650414,1752733850457,-642.73,0.00018857,2]
[372650415,1752733850534,-151.0,0.00018858,2]
[372650416,1752733850544,-151.0,0.00018858,2]
[372650417,1752733850554,-460.0,0.00018858,2]
[372650418,1752733850567,-460.0,0.00018858,2]
[372650419,1752733850577,-460.0,0.00018858,2]
[372650420,1752733850587,-460.0,0.00018858,2]
[372650421,1752733850597,-460.0,0.00018858,2]
[372650422,1752733850607,-460.0,0.00018858,2]
[372650423,1752733850617,-151.326957,0.00018858,2]
[372650424,1752733850627,-151.326957,0.00018858,2]
[372650425,1752733850636,-460.0,0.00018858,2]
[372650426,1752733850646,-460.0,0.00018858,2]
[372650427,1752733850656,-460.0,0.00018858,2]
[372650428,1752733850665,-538.7904585,0.00018858,2]
[372650429,1752733850675,-460.0,0.00018858,2]
[372650430,1752733850684,-151.0,0.00018858,2]
[372650431,1752733850694,-460.0,0.00018858,2]
[372650432,1752733850703,-151.0,0.00018858,2]
[372650433,1752733850712,-460.0,0.00018858,2]
[372650434,1752733850722,-460.0,0.00018858,2]
[372650435,1752733850732,-460.0,0.00018858,2]
[372650436,1752733850744,-674.33,0.00018858,2]
[372650437,1752733850753,-151.0,0.00018858,2]
[372650438,1752733850763,-460.0,0.00018858,2]
[372650439,1752733850772,-460.0,0.00018858,2]
[372650440,1752733850783,-460.0,0.00018858,2]
[372650441,1752733850792,-460.0,0.00018858,2]
[372650442,1752733850802,-460.0,0.00018858,2]
[372650443,1752733850814,-460.0,0.00018858,2]
[372650444,1752733850827,-460.0,0.00018858,2]
[372650445,1752733850838,-151.0,0.00018858,2]
[372650446,1752733850847,-460.0,0.00018858,2]
[372650447,1752733850858,-460.0,0.00018858,2]
[372650448,1752733850867,-151.0,0.00018858,2]
[372650449,1752733850878,-460.0,0.00018858,2]
[372650450,1752733850888,-151.0,0.00018858,2]
[372650451,1752733850898,-460.0,0.00018858,2]
[372650452,1752733850907,-460.0,0.00018858,2]
[372650453,1752733850917,-460.0,0.00018858,2]
[372650454,1752733850927,-468.75273965,0.00018858,2]
[372650455,1752733850937,-460.0,0.00018858,2]
[372650456,1752733850947,-460.0,0.00018858,2]
[372650457,1752733850956,-464.53918677,0.00018858,2]
[372650458,1752733850966,-460.0,0.00018858,2]
[372650459,1752733850976,-460.0,0.00018858,2]
[372650460,1752733850986,-460.0,0.00018858,2]
[372650461,1752733850996,-151.0,0.00018859,2]
[372650462,1752733851005,-151.0,0.00018859,2]
[372650463,1752733851015,-151.0,0.00018859,2]
[372650464,1752733851024,-263.172676,0.0001886,2]
[372650465,1752733851034,-263.172676,0.0001886,2]
[372650466,1752733851044,-330.792834,0.0001888,2]
[372650467,1752733851057,-330.792834,0.0001888,2]
[372650468,1752733851081,-166.465663,0.000189,2]
[372650469,1752733851097,-166.465663,0.000189,2]
[372650470,1752733851116,-303.00000303,0.000189,2]
[372650471,1752733851138,-1882.84885115,0.000189,2]
[372650472,1752733851158,-457.83383477,0.00018921,2]
[372650473,1752733851174,-1002.38498412,0.00018921,2]
[372650474,1752733851194,-1000.0,0.00018921,2]
[372650475,1752733851208,-1000.0,0.00018921,2]
[372650476,1752733851224,-1012.98621668,0.00018921,2]
[372650477,1752733851244,-500.0,0.00018921,2]
[372650478,1752733851263,-1000.0,0.00018921,2]
[372650479,1752733851280,-209.25719956,0.00018921,2]
[372650480,1752733851293,-460.0,0.00018953,2]
[372650481,1752733851315,-460.0,0.00018953,2]
[372650482,1752733851330,-460.0,0.00018953,2]
[372650483,1752733851347,-460.0,0.00018953,2]
[372650484,1752733851361,-4140.04,0.00018953,2]
[372650485,1752733851377,-932.79,0.00018953,2]
[372650486,1752733851391,-540.39,0.00018953,2]
[372650487,1752733851406,-460.0,0.00018953,2]
[372650488,1752733851421,-2892.45,0.00018953,2]
[372650489,1752733851435,-460.0,0.00018953,2]
[372650490,1752733851450,-460.0,0.00018953,2]
[372650491,1752733851464,-2151.51,0.00018953,2]
[372650492,1752733851479,-727.28,0.00018953,2]
[372650493,1752733851495,-336.02597591,0.00018954,2]
[372650494,1752733851510,-460.0,0.00018954,2]
[372650495,1752733851525,-460.0,0.00018954,2]
[372650496,1752733851539,-460.0,0.00018954,2]
[372650497,1752733851554,-292.90313588,0.00018955,2]
[372650498,1752733851570,-460.0,0.00018955,2]
[372650499,1752733851585,-593.09876843,0.00018955,2]
[372650500,1752733851601,-460.0,0.00018955,2]
[372650501,1752733851616,-460.0,0.00018955,2]
[372650502,1752733851631,-460.0,0.00018955,2]
[372650503,1752733851645,-460.0,0.00018955,2]
[372650504,1752733851660,-460.0,0.00018955,2]
[372650505,1752733851675,-460.0,0.00018955,2]
[372650506,1752733851690,-460.0,0.00018955,2]
[372650507,1752733851705,-460.0,0.00018955,2]
[372650508,1752733851720,-631.04,0.00018955,2]
[372650509,1752733851735,-460.0,0.00018955,2]
[372650510,1752733851755,-460.0,0.00018955,2]
[372650511,1752733851769,-460.0,0.00018955,2]
[372650512,1752733851784,-1599.14,0.00018955,2]
[372650513,1752733851798,-460.0,0.00018955,2]
[372650514,1752733851814,-460.0,0.00018955,2]
[372650515,1752733851829,-460.0,0.00018955,2]
[372650516,1752733851844,-613.34,0.00018955,2]
[372650517,1752733851860,-619.55,0.00018955,2]
[372650518,1752733851871,-1158.0,0.00018955,2]
[372650519,1752733851881,-460.0,0.00018955,2]
[372650520,1752733851891,-464.03122356,0.00018955,2]
[372650521,1752733852031,-460.0,0.00018955,2]
[372650522,1752733852041,-693.25,0.00018955,2]
[372650523,1752733852051,-460.0,0.00018955,2]
[372650524,1752733852062,-460.0,0.00018955,2]
[372650525,1752733852073,-460.0,0.00018955,2]
[372650526,1752733852082,-1194.0,0.00018957,2]
[372650527,1752733852092,-151.0,0.00018957,2]
[372650528,1752733852101,-205.01376371,0.00018957,2]
[372650529,1752733852111,-1100.0,0.00018957,2]
[372650530,1752733852121,-151.0,0.00018957,2]
[372650531,1752733852131,-500.0,0.00018957,2]
[372650532,1752733852141,-460.0,0.00018957,2]
[372650533,1752733852151,-460.0,0.00018957,2]
[372650534,1752733852164,-517.29962209,0.00018957,2]
[372650535,1752733852174,-286.55947939,0.00018957,2]
[372650536,1752733852183,-460.0,0.00018957,2]
[372650537,1752733852193,-460.0,0.00018957,2]
[372650538,1752733852202,-460.0,0.00018957,2]
[372650539,1752733852212,-460.0,0.00018957,2]
[372650540,1752733852222,-563.12216986,0.00018957,2]
[372650541,1752733852232,-460.0,0.00018957,2]
[372650542,1752733852242,-460.0,0.00018957,2]
[372650543,1752733852252,-460.0,0.00018957,2]
[372650544,1752733852262,-460.0,0.00018957,2]
[372650545,1752733852271,-460.0,0.00018957,2]
[372650546,1752733852281,-167.88088434,0.00018957,2]
[372650547,1752733852290,-460.0,0.00018957,2]
[372650548,1752733852300,-151.0,0.00018957,2]
[372650549,1752733852310,-847.53,0.00018957,2]
[372650550,1752733852322,-692.39,0.00018957,2]
[372650551,1752733852333,-460.0,0.00018957,2]
[372650552,1752733852347,-460.0,0.00018957,2]
[372650553,1752733852357,-460.0,0.00018957,2]
[372650554,1752733852367,-546.11,0.00018957,2]
[372650555,1752733852377,-460.0,0.00018957,2]
[372650556,1752733852387,-460.0,0.00018957,2]
[372650557,1752733852397,-3583.74,0.00018957,2]
[372650558,1752733852407,-460.0,0.00018957,2]
[372650559,1752733852417,-153.136782,0.00018958,2]
[372650560,1752733852426,-151.0,0.00018958,2]
[372650561,1752733852435,-151.0,0.00018958,2]
[372650562,1752733852444,-151.0,0.00018958,2]
[372650563,1752733852454,-460.0,0.00018958,2]
[372650564,1752733852464,-460.0,0.00018958,2]
[372650565,1752733852474,-424.07649,0.00018959,2]
[372650566,1752733852483,-424.07649,0.00018959,2]
[372650567,1752733852494,-151.0,0.00018959,2]
[372650568,1752733852503,-460.0,0.00018959,2]
[372650569,1752733852513,-460.0,0.00018959,2]
[372650570,1752733852522,-460.0,0.00018959,2]
[372650571,1752733852532,-460.0,0.00018959,2]
[372650572,1752733852542,-460.0,0.00018959,2]
[372650573,1752733852551,-151.0,0.0001896,2]
[372650574,1752733852561,-151.0,0.0001896,2]
[372650575,1752733852573,-292.2,0.0001896,2]
[372650576,1752733852583,-330.792834,0.00018961,2]
[372650577,1752733852592,-330.792834,0.00018961,2]
[372650578,1752733852602,-263.172676,0.00018961,2]
[372650579,1752733852612,-263.172676,0.00018961,2]
[372650580,1752733852623,-3910.0,0.00018971,2]
[372650581,1752733852633,-168.0,0.00018996,2]
[372650582,1752733852643,-151.0,0.00019,2]
[372650583,1752733852652,-36958.72435138,0.00019003,2]
[372650584,1752733852662,-6103.66126702,0.00019005,2]
[372650585,1752733852671,-1000.0,0.00019077,2]
[372650586,1752733852680,-500.36556923,0.00019077,2]
[372650587,1752733852690,-303.00000303,0.00019089,2]
[372650588,1752733852699,-168.0,0.00019091,2]
[372650589,1752733852709,-151.0,0.000191,2]